[Event "Tatra Limba Master 2022"]
[Site "Poronin"]
[Date "2022.01.07"]
[Round "3.8"]
[White "Kozlowski, Franciszek"]
[Black "Wysocki, Mateusz"]
[Result "1/2-1/2"]
[ECO "A48"]
[WhiteElo "1523"]
[BlackElo "1848"]
[Annotator "NA"]
[PlyCount "116"]
[EventDate "2022.01.07"]
[EventType "swiss"]
[EventCountry "POL"]
[SourceTitle "playchess.com"]
[Source "ChessBase"]
[SourceQuality "1"]
[TimeControl "5400+30"]

1. d4 {[%emt 0:00:04]} Nf6 {[%emt 0:00:28]} 2. Nf3 {[%emt 0:00:25]} g6 {[%emt 0:00:44]} 3. Bg5 {[%emt 0:01:14]} Bg7 {[%emt 0:00:23]} 4. c3 {[%emt 0:01:21]} O-O {[%emt 0:01:49]} 5. Nbd2 {[%emt 0:01:34]} d5 {[%emt 0:01:55]} 6. Bxf6 {[%emt 0:05:56]} Bxf6 {[%emt 0:03:41]} 7. e4 {[%emt 0:00:15]} dxe4 {[%emt 0:00:06]} 8. Nxe4 {[%emt 0:00:12]} Bg7 {[%emt 0:00:05]} 9. Bd3 {[%emt 0:03:12]} Nc6 {[%emt 0:00:51]} 10. Bc2 {[%emt 0:03:14]} b6 {[%emt 0:07:21]} 11. O-O {[%emt 0:02:32]} Bb7 {[%emt 0:06:11]} 12. Re1 {[%emt 0:02:32]} e6 {[%emt 0:07:48]} 13. Qe2 {[%emt 0:02:10]} Re8 {[%emt 0:06:24]} (13... Ne7 $11 {is superior.}) 14. Rad1 {[%emt 0:00:29]} Qe7 {[%emt 0:00:17]} 15. Ba4 {[%emt 0:01:49]} a6 {[%emt 0:04:26]} 16. a3 $11 {[%emt 0:03:24]} h6 {[%emt 0:08:25]} 17. h3 {[%emt 0:01:33]} Red8 {[%emt 0:05:28]} 18. Bb3 {[%emt 0:00:18]} Na5 {[%emt 0:02:09]} 19. Ba2 {[%emt 0:00:33]} c5 {[%emt 0:03:35]} 20. dxc5 {[%emt 0:01:30]} bxc5 {[%emt 0:00:06]} 21. Qc2 {[%emt 0:00:22]} c4 {[%emt 0:03:55]} 22. Rxd8+ {[%emt 0:01:39]} Rxd8 {[%emt 0:00:58]} 23. Qa4 {[%emt 0:02:59]} Qc7 {[%emt 0:02:04]} 24. Ned2 {[%emt 0:03:58]} Bc6 {[%emt 0:02:55]} 25. Qc2 {[%emt 0:00:28]} Bd5 {[%emt 0:00:33]} 26. Rd1 {[%emt 0:03:52]} Rb8 {[%emt 0:01:03]} 27. Nf1 {[%emt 0:00:20]} Qb7 {[%emt 0:06:28]} 28. Ne1 {[%emt 0:00:45]} e5 {[%emt 0:12:25]} 29. Qa4 {[%emt 0:02:17]} Qb5 {[%emt 0:00:36]} 30. Qxb5 {[%emt 0:01:09]} Rxb5 {[%emt 0:00:01]} 31. Ne3 {[%emt 0:00:39]} Be6 {[%emt 0:00:17]} 32. Rd2 {[%emt 0:01:38]} Bf6 {[%emt 0:01:17]} 33. Nd1 {[%emt 0:01:26]} Nb7 {[%emt 0:01:34]} 34. Ne3 {[%emt 0:01:40]} Rc5 {[%emt 0:01:44]} 35. Kf1 {[%emt 0:03:39]} Be7 {[%emt 0:01:15]} 36. Bxc4 {[%emt 0:01:35]} Rxc4 {[%emt 0:00:21]} 37. Nxc4 {[%emt 0:01:01]} Bxc4+ {[%emt 0:00:10]} 38. Kg1 {[%emt 0:00:05]} Nc5 {[%emt 0:01:07]} 39. Nc2 {[%emt 0:03:52]} f5 {[%emt 0:03:14]} 40. Ne3 {[%emt 0:00:25]} Bb3 {[%emt 0:00:32]} 41. Nd5 {[%emt 0:03:38]} Bg5 {[%emt 0:00:26]} 42. Ne3 {[%emt 0:01:07]} Kf7 {[%emt 0:01:43]} 43. Rd6 {[%emt 0:02:21]} Be7 {[%emt 0:00:29]} 44. Rc6 {[%emt 0:03:50]} a5 {[%emt 0:01:41]} 45. c4 {[%emt 0:01:40]} h5 {[%emt 0:02:06]} 46. Nd5 {[%emt 0:00:20]} Bf8 {[%emt 0:00:06]} 47. Rc7+ {[%emt 0:02:02]} Ke6 {[%emt 0:01:10]} 48. Nb6 {[%emt 0:02:17]} e4 {[%emt 0:01:31]} 49. Rc8 {[%emt 0:01:56]} Kf7 {[%emt 0:00:35]} 50. Rc7+ {[%emt 0:00:12]} Ke8 {[%emt 0:00:30]} 51. Rc8+ {[%emt 0:00:46]} Kf7 {[%emt 0:00:11]} 52. Rc7+ {[%emt 0:00:06]} Ke6 {[%emt 0:00:35]} 53. Rc8 {[%emt 0:00:13]} Bd6 {[%emt 0:00:16]} 54. Rc6 {[%emt 0:00:38]} Ba4 {[%emt 0:00:59]} 55. Rxc5 {[%emt 0:00:43]} Bxc5 {[%emt 0:00:15]} 56. Nxa4 {[%emt 0:00:25]} Bd4 {[%emt 0:00:12]} 57. b4 {[%emt 0:00:38]} axb4 58. axb4 Ke5 1/2-1/2

[Event "Tatra Limba Master 2022"]
[Site "Poronin"]
[Date "2022.01.07"]
[Round "3.9"]
[White "Bartoszczuk, Adam"]
[Black "Mroz, Lena"]
[Result "1/2-1/2"]
[ECO "B28"]
[WhiteElo "1380"]
[BlackElo "1835"]
[Annotator "NA"]
[PlyCount "72"]
[EventDate "2022.01.07"]
[EventType "swiss"]
[EventCountry "POL"]
[SourceTitle "playchess.com"]
[Source "ChessBase"]
[SourceQuality "1"]
[TimeControl "5400+30"]

1. e4 {[%emt 0:00:02]} c5 {[%emt 0:00:05]} 2. Nf3 {[%emt 0:00:05]} a6 {[%emt 0:00:06]} 3. c4 {[%emt 0:00:34]} Nc6 {[%emt 0:00:14]} 4. Nc3 {[%emt 0:01:56]} e5 {[%emt 0:00:14]} 5. d3 {[%emt 0:00:32]} d6 {[%emt 0:01:06]} 6. Be2 {[%emt 0:00:48]} g6 {[%emt 0:00:34]} 7. O-O {[%emt 0:02:34]} Bg7 {[%emt 0:00:24]} 8. Ne1 {[%emt 0:05:37]} Nge7 {[%emt 0:07:22]} 9. Nc2 {[%emt 0:03:51]} O-O {[%emt 0:03:27]} 10. Ne3 {[%emt 0:02:31]} (10. Rb1 $11) 10... f5 {[%emt 0:08:21]} 11. Ned5 {[%emt 0:03:15]} f4 {[%emt 0:09:00]} 12. Bg4 {[%emt 0:06:45]} Nd4 $11 {[%emt 0:18:40]} 13. Bxc8 {[%emt 0:05:02]} Rxc8 {[%emt 0:03:10]} 14. f3 {[%emt 0:01:18]} h5 {[%emt 0:18:21]} 15. Bd2 {[%emt 0:03:02]} g5 {[%emt 0:08:24]} 16. a3 {[%emt 0:05:42]} Kf7 {[%emt 0:03:51]} 17. b4 {[%emt 0:02:09]} b6 {[%emt 0:03:31]} 18. Qa4 {[%emt 0:03:22]} cxb4 {[%emt 0:05:10]} 19. axb4 {[%emt 0:00:19]} Ra8 {[%emt 0:00:38]} 20. c5 {[%emt 0:04:59]} dxc5 {[%emt 0:02:50]} 21. bxc5 {[%emt 0:00:02]} b5 {[%emt 0:02:02]} 22. Qa2 {[%emt 0:00:22]} Kg6 {[%emt 0:00:14]} 23. Nxe7+ {[%emt 0:05:01]} Qxe7 {[%emt 0:00:05]} 24. Nd5 {[%emt 0:00:31]} Qb7 {[%emt 0:03:04]} 25. Bb4 {[%emt 0:01:12]} Nc6 {[%emt 0:01:03]} 26. Rfc1 {[%emt 0:02:28]} a5 {[%emt 0:00:31]} 27. Bd2 {[%emt 0:01:24]} Rfe8 {[%emt 0:00:50]} 28. Nb6 {[%emt 0:01:41]} Ra7 {[%emt 0:00:24]} 29. Qd5 {[%emt 0:02:10]} Kh7 {[%emt 0:00:36]} 30. h4 {[%emt 0:02:53]} g4 {[%emt 0:00:27]} 31. Kf1 {[%emt 0:06:27]} g3 {[%emt 0:00:08]} 32. Rab1 {[%emt 0:04:05]} b4 {[%emt 0:00:08]} 33. Nc4 {[%emt 0:00:12]} Bf8 {[%emt 0:01:07]} 34. Nd6 {[%emt 0:05:48]} Bxd6 {[%emt 0:00:04]} 35. cxd6 {[%emt 0:00:04]} Rc8 {[%emt 0:01:07]} 36. Qe6 {[%emt 0:00:30]} Qd7 1/2-1/2

[Event "Tatra Limba Master 2022"]
[Site "Poronin"]
[Date "2022.01.07"]
[Round "3.10"]
[White "Rekuc, Patryk"]
[Black "Liskiewicz, Jakub"]
[Result "0-1"]
[ECO "B09"]
[WhiteElo "1662"]
[BlackElo "1598"]
[Annotator "NA"]
[PlyCount "104"]
[EventDate "2022.01.07"]
[EventType "swiss"]
[EventCountry "POL"]
[SourceTitle "playchess.com"]
[Source "ChessBase"]
[SourceQuality "1"]
[TimeControl "5400+30"]

1. e4 {[%emt 0:00:01]} d6 {[%emt 0:00:10]} 2. d4 {[%emt 0:00:04]} Nf6 {[%emt 0:00:07]} 3. Nc3 {[%emt 0:00:05]} g6 {[%emt 0:00:11]} 4. f4 {[%emt 0:00:04]} Bg7 {[%emt 0:00:07]} 5. Nf3 {[%emt 0:00:04]} O-O {[%emt 0:00:08]} 6. Be2 {[%emt 0:00:02]} Na6 {[%emt 0:00:07]} 7. O-O {[%emt 0:00:07]} c5 {[%emt 0:00:08]} 8. e5 {[%emt 0:00:08]} Nd7 {[%emt 0:00:19]} 9. exd6 {[%emt 0:00:04]} exd6 {[%emt 0:00:13]} 10. f5 {[%emt 0:00:12]} Nb4 {[%emt 0:29:14]} 11. fxg6 {[%emt 0:28:08]} hxg6 {[%emt 0:00:24]} 12. Be3 {[%emt 0:05:02]} Re8 {[%emt 0:00:45]} 13. Bf2 {[%emt 0:01:03]} Nc6 {[%emt 0:04:51]} 14. Qd2 {[%emt 0:03:31]} cxd4 {[%emt 0:08:01]} 15. Nxd4 {[%emt 0:00:43]} Nde5 {[%emt 0:01:40]} 16. Rad1 {[%emt 0:00:40]} Nxd4 {[%emt 0:06:28]} 17. Bxd4 {[%emt 0:00:08]} Bf5 {[%emt 0:00:40]} 18. Bb5 {[%emt 0:01:53]} Re6 {[%emt 0:02:56]} 19. h3 {[%emt 0:03:31]} Qh4 {[%emt 0:09:05]} 20. Qf2 {[%emt 0:01:57]} Qg5 {[%emt 0:04:52]} 21. Be3 {[%emt 0:00:10]} Nf3+ {[%emt 0:01:21]} 22. Qxf3 {[%emt 0:00:25]} Rxe3 {[%emt 0:00:09]} 23. Qxb7 {[%emt 0:02:07]} Rf8 {[%emt 0:02:22]} 24. Qd5 {[%emt 0:10:42]} Bxc3 {[%emt 0:02:34]} 25. bxc3 {[%emt 0:00:08]} Re5 {[%emt 0:00:12]} 26. Qc4 {[%emt 0:02:42]} Be6 {[%emt 0:00:19]} 27. Qf4 {[%emt 0:01:45]} Qxf4 {[%emt 0:01:56]} 28. Rxf4 {[%emt 0:00:03]} Rxb5 {[%emt 0:00:09]} 29. Rxd6 {[%emt 0:00:16]} Rc8 {[%emt 0:00:17]} 30. Ra6 {[%emt 0:00:35]} Rb1+ {[%emt 0:00:41]} 31. Kh2 {[%emt 0:00:06]} Rxc3 {[%emt 0:00:45]} 32. Rf2 {[%emt 0:00:24]} Rb2 {[%emt 0:01:24]} 33. a4 {[%emt 0:00:33]} Rc7 {[%emt 0:04:14]} 34. Kg3 {[%emt 0:00:27]} Bf5 {[%emt 0:00:41]} 35. Kh4 {[%emt 0:00:37]} Rbxc2 {[%emt 0:00:20]} 36. Rxc2 {[%emt 0:00:12]} Bxc2 {[%emt 0:00:10]} 37. g4 {[%emt 0:00:18]} Kg7 {[%emt 0:00:44]} 38. Kg5 {[%emt 0:00:07]} Rc5+ {[%emt 0:00:28]} 39. Kh4 {[%emt 0:00:09]} Rc7 {[%emt 0:01:26]} 40. Kg5 {[%emt 0:00:05]} f6+ {[%emt 0:00:13]} 41. Kh4 {[%emt 0:00:05]} Rc3 {[%emt 0:00:39]} 42. g5 {[%emt 0:00:37]} fxg5+ {[%emt 0:00:45]} 43. Kxg5 {[%emt 0:00:08]} Rc5+ {[%emt 0:00:07]} 44. Kf4 {[%emt 0:00:07]} Rc4+ {[%emt 0:00:06]} 45. Ke5 {[%emt 0:00:04]} Rxa4 {[%emt 0:00:09]} 46. Rc6 {[%emt 0:00:05]} Bf5 {[%emt 0:00:13]} 47. Rc7+ {[%emt 0:00:06]} Kh6 {[%emt 0:00:19]} 48. Kf6 {[%emt 0:00:09]} Ra6+ {[%emt 0:00:46]} 49. Kf7 {[%emt 0:00:07]} Bxh3 {[%emt 0:00:17]} 50. Rc1 {[%emt 0:00:05]} g5 {[%emt 0:00:21]} 51. Rd1 {[%emt 0:00:17]} Kh5 {[%emt 0:00:21]} 52. Rd8 {[%emt 0:00:14]} g4 {[%emt 0:00:13]} 0-1

[Event "Tatra Limba Master 2022"]
[Site "Poronin"]
[Date "2022.01.07"]
[Round "3.11"]
[White "Radzimski, Antoni"]
[Black "Gepfert, Cyprian"]
[Result "0-1"]
[ECO "B47"]
[WhiteElo "1613"]
[BlackElo "1743"]
[Annotator "NA"]
[PlyCount "97"]
[EventDate "2022.01.07"]
[EventType "swiss"]
[EventCountry "POL"]
[SourceTitle "playchess.com"]
[Source "ChessBase"]
[SourceQuality "1"]
[TimeControl "5400+30"]

1. e4 {[%emt 0:00:02]} c5 {[%emt 0:00:04]} 2. Nf3 {[%emt 0:00:07]} e6 {[%emt 0:00:05]} 3. d4 {[%emt 0:00:06]} cxd4 {[%emt 0:00:03]} 4. Nxd4 {[%emt 0:00:08]} Nc6 {[%emt 0:00:04]} 5. Nc3 {[%emt 0:00:06]} Qc7 {[%emt 0:00:25]} 6. g3 {[%emt 0:00:07]} a6 {[%emt 0:00:18]} 7. Bg2 {[%emt 0:00:09]} Nf6 {[%emt 0:00:17]} 8. O-O {[%emt 0:00:12]} Nxd4 {[%emt 0:00:05]} 9. Qxd4 {[%emt 0:00:07]} Bc5 {[%emt 0:00:04]} 10. Bf4 {[%emt 0:00:16]} d6 {[%emt 0:00:17]} 11. Qd2 {[%emt 0:00:21]} h6 {[%emt 0:00:14]} 12. Na4 {[%emt 0:00:16]} e5 {[%emt 0:01:12]} 13. Be3 {[%emt 0:00:21]} Bxe3 {[%emt 0:04:09]} 14. Qxe3 {[%emt 0:00:10]} Be6 {[%emt 0:01:59]} 15. c4 {[%emt 0:01:56]} Nd7 {[%emt 0:04:13]} 16. b3 {[%emt 0:02:22]} O-O {[%emt 0:01:18]} 17. Nc3 {[%emt 0:01:38]} Rfd8 {[%emt 0:06:12]} 18. Kh1 {[%emt 0:04:40]} Rac8 {[%emt 0:01:14]} 19. f4 {[%emt 0:03:24]} f6 {[%emt 0:00:25]} 20. f5 {[%emt 0:02:49]} Bf7 {[%emt 0:00:24]} 21. Rac1 {[%emt 0:02:46]} Qa5 {[%emt 0:03:16]} 22. Qe2 {[%emt 0:13:46]} Nb8 {[%emt 0:03:30]} 23. Bf3 {[%emt 0:04:04]} Kf8 {[%emt 0:02:27]} 24. Bh5 {[%emt 0:01:16]} Bg8 {[%emt 0:00:27]} 25. Qg4 {[%emt 0:00:53]} Nc6 {[%emt 0:01:58]} 26. Nd5 {[%emt 0:03:38]} Bxd5 {[%emt 0:01:21]} 27. exd5 {[%emt 0:00:58]} Ne7 {[%emt 0:01:51]} 28. Qe2 {[%emt 0:04:58]} b5 {[%emt 0:01:28]} 29. g4 {[%emt 0:02:22]} bxc4 {[%emt 0:02:41]} 30. bxc4 {[%emt 0:00:33]} Rc7 {[%emt 0:04:19]} 31. Rc2 {[%emt 0:01:57]} Rdc8 {[%emt 0:00:13]} 32. Rfc1 {[%emt 0:00:14]} Qc5 {[%emt 0:06:23]} 33. h4 {[%emt 0:06:39]} Qd4 {[%emt 0:00:53]} 34. Kg2 {[%emt 0:04:23]} a5 {[%emt 0:03:08]} 35. Kh3 {[%emt 0:00:43]} Rb7 {[%emt 0:03:36]} 36. Bg6 {[%emt 0:03:28]} Rcb8 {[%emt 0:01:30]} 37. Rd2 {[%emt 0:05:04]} Rb2 {[%emt 0:05:41]} 38. Rcc2 {[%emt 0:04:27]} Rxc2 {[%emt 0:00:32]} 39. Rxc2 {[%emt 0:00:07]} Rb1 {[%emt 0:01:27]} 40. Qf3 {[%emt 0:01:48]} Rd1 {[%emt 0:05:55]} 41. Kh2 {[%emt 0:05:37]} Rd3 {[%emt 0:05:21]} 42. Qf1 {[%emt 0:01:13]} Qe3 {[%emt 0:03:41]} 43. Rg2 {[%emt 0:01:16]} Rc3 {[%emt 0:02:32]} 44. Rg1 {[%emt 0:04:16]} Qe4 {[%emt 0:04:32]} 45. Rg3 {[%emt 0:03:52]} Qxc4 {[%emt 0:04:48]} 46. Qb1 {[%emt 0:00:53]} Rc2+ {[%emt 0:04:00]} 47. Kh3 {[%emt 0:00:12]} Rc1 {[%emt 0:02:37]} 48. Qb8+ {[%emt 0:00:06]} Nc8 {[%emt 0:00:08]} 49. Bh5 0-1

[Event "Tatra Limba Master 2022"]
[Site "Poronin"]
[Date "2022.01.08"]
[Round "4.1"]
[White "Kowalczyk, Pawel"]
[Black "Pniaczek, Marek"]
[Result "1/2-1/2"]
[ECO "C21"]
[WhiteElo "2338"]
[BlackElo "2329"]
[Annotator "ChessBase"]
[PlyCount "119"]
[EventDate "2022.01.07"]
[EventType "swiss"]
[EventCountry "POL"]
[SourceTitle "playchess.com"]
[Source "ChessBase"]
[SourceQuality "1"]
[TimeControl "5400+30"]

1. e4 {[%emt 0:00:17]} e5 {[%emt 0:00:06]} 2. d4 {[%emt 0:01:43]} exd4 {[%emt 0:00:13]} 3. c3 {[%emt 0:00:07]} d5 {[%emt 0:01:56]} 4. exd5 {[%emt 0:00:14]} Qxd5 {[%emt 0:00:06]} 5. cxd4 {[%emt 0:00:24]} Nc6 {[%emt 0:00:32]} 6. Nf3 {[%emt 0:00:14]} Bg4 {[%emt 0:00:34]} 7. Be2 {[%emt 0:00:10]} Bb4+ {[%emt 0:00:49]} 8. Nc3 {[%emt 0:00:10]} Bxf3 {[%emt 0:00:20]} 9. Bxf3 {[%emt 0:00:03]} Qc4 {[%emt 0:00:05]} 10. Bxc6+ {[%emt 0:00:10]} bxc6 {[%emt 0:00:49]} 11. Qe2+ {[%emt 0:00:03]} Qxe2+ {[%emt 0:00:05]} 12. Kxe2 {[%emt 0:00:03]} Nf6 {[%emt 0:06:04]} 13. Be3 {[%emt 0:03:08]} Kd7 {[%emt 0:04:48]} 14. Na4 {[%emt 0:05:27]} Nd5 {[%emt 0:00:40]} 15. Rac1 {[%emt 0:01:33]} Rhe8 {[%emt 0:16:36]} 16. a3 {[%emt 0:09:20]} Bf8 {[%emt 0:02:24]} 17. Kd3 {[%emt 0:03:05]} Rab8 {[%emt 0:04:19]} 18. Rhe1 {[%emt 0:08:25]} Rb5 {[%emt 0:14:31]} 19. Bd2 {[%emt 0:04:59]} Rxe1 {[%emt 0:01:39]} 20. Rxe1 {[%emt 0:00:07]} Nb6 {[%emt 0:00:39]} 21. Nxb6+ {[%emt 0:03:44]} cxb6 {[%emt 0:00:10]} 22. Bc3 {[%emt 0:03:32]} Bd6 {[%emt 0:01:21]} 23. g3 {[%emt 0:02:03]} Rh5 {[%emt 0:01:40]} 24. h4 {[%emt 0:00:12]} Rf5 {[%emt 0:00:34]} 25. Re2 {[%emt 0:03:36]} h5 {[%emt 0:00:59]} 26. Ke4 {[%emt 0:02:47]} g6 {[%emt 0:00:37]} 27. a4 {[%emt 0:11:06]} Rd5 {[%emt 0:07:23]} 28. Kd3 {[%emt 0:02:00]} a6 {[%emt 0:08:30]} 29. b4 {[%emt 0:03:02]} Be7 {[%emt 0:01:35]} 30. Kc4 {[%emt 0:09:13]} Bf6 {[%emt 0:00:38]} 31. Bb2 {[%emt 0:05:00]} Rf5 {[%emt 0:01:38]} 32. Bc1 {[%emt 0:00:03]} Be7 {[%emt 0:04:16]} 33. Be3 {[%emt 0:01:21]} f6 {[%emt 0:03:34]} 34. Re1 {[%emt 0:01:40]} g5 {[%emt 0:02:57]} 35. Rh1 {[%emt 0:00:18]} g4 {[%emt 0:00:25]} 36. Rb1 {[%emt 0:01:44]} b5+ {[%emt 0:00:36]} 37. axb5 {[%emt 0:01:20]} axb5+ {[%emt 0:00:03]} 38. Kd3 {[%emt 0:01:40]} Bd6 {[%emt 0:00:26]} 39. Ke4 {[%emt 0:05:27]} Rf3 {[%emt 0:00:34]} 40. Ra1 {[%emt 0:01:51]} f5+ {[%emt 0:00:34]} 41. Kd3 {[%emt 0:00:02]} f4 {[%emt 0:05:40]} 42. gxf4 {[%emt 0:00:02]} Bxf4 {[%emt 0:00:04]} 43. Ra7+ {[%emt 0:00:05]} Ke6 {[%emt 0:00:19]} 44. Rh7 {[%emt 0:00:09]} g3 {[%emt 0:07:09]} 45. Ke2 {[%emt 0:00:07]} gxf2 {[%emt 0:00:35]} 46. Bxf2 {[%emt 0:00:05]} Rb3 {[%emt 0:00:32]} 47. Rxh5 {[%emt 0:01:27]} Rxb4 {[%emt 0:00:07]} 48. Kf3 {[%emt 0:00:01]} Bc1 {[%emt 0:00:36]} 49. Rc5 {[%emt 0:01:01]} Rc4 {[%emt 0:03:04]} 50. Rxc4 {[%emt 0:06:32]} bxc4 {[%emt 0:00:01]} 51. Be3 {[%emt 0:00:30]} Ba3 {[%emt 0:00:05]} 52. Ke4 {[%emt 0:00:23]} Be7 {[%emt 0:00:44]} 53. h5 {[%emt 0:00:31]} Bf6 {[%emt 0:00:09]} 54. Bf4 {[%emt 0:00:49]} c3 {[%emt 0:00:22]} 55. Kd3 {[%emt 0:00:56]} Kf5 {[%emt 0:00:35]} 56. Bc1 {[%emt 0:01:22]} c2 {[%emt 0:00:15]} 57. Bd2 {[%emt 0:02:09]} Bh8 {[%emt 0:00:24]} 58. Be3 {[%emt 0:00:14]} Kg4 {[%emt 0:01:39]} 59. h6 {[%emt 0:00:13]} Kh5 {[%emt 0:00:04]} 60. Kxc2 {[%emt 0:01:00]} 1/2-1/2

[Event "Tatra Limba Master 2022"]
[Site "Poronin"]
[Date "2022.01.08"]
[Round "4.3"]
[White "Zielonka, Adam"]
[Black "Ustianovich, Nazar"]
[Result "1/2-1/2"]
[ECO "A16"]
[WhiteElo "1862"]
[BlackElo "2344"]
[Annotator "ChessBase"]
[PlyCount "45"]
[EventDate "2022.01.07"]
[EventType "swiss"]
[EventCountry "POL"]
[SourceTitle "playchess.com"]
[Source "ChessBase"]
[SourceQuality "1"]
[TimeControl "5400+30"]

1. c4 {[%emt 0:00:04]} Nf6 {[%emt 0:07:17]} 2. Nc3 {[%emt 0:00:07]} e5 {[%emt 0:12:10]} 3. e3 {[%emt 0:00:11]} Bb4 {[%emt 0:01:13]} 4. Nge2 {[%emt 0:00:07]} c6 {[%emt 0:18:42]} 5. a3 {[%emt 0:04:02]} Bxc3 {[%emt 0:00:27]} 6. Nxc3 {[%emt 0:00:09]} O-O {[%emt 0:02:02]} 7. d4 {[%emt 0:01:33]} e4 {[%emt 0:05:56]} 8. Be2 {[%emt 0:04:53]} Re8 {[%emt 0:01:25]} 9. O-O {[%emt 0:00:18]} d5 {[%emt 0:01:41]} 10. b4 {[%emt 0:01:27]} dxc4 {[%emt 0:04:15]} 11. Bxc4 {[%emt 0:01:09]} Be6 {[%emt 0:00:03]} 12. Qb3 {[%emt 0:02:07]} Qd6 {[%emt 0:06:49]} 13. h3 {[%emt 0:05:12]} Nbd7 {[%emt 0:00:50]} 14. a4 {[%emt 0:00:50]} Nb6 {[%emt 0:04:21]} 15. Bxe6 {[%emt 0:01:15]} Rxe6 {[%emt 0:00:01]} 16. b5 {[%emt 0:00:40]} Nbd5 {[%emt 0:00:31]} 17. Ba3 {[%emt 0:00:29]} Qd7 {[%emt 0:00:03]} 18. bxc6 {[%emt 0:01:45]} Rxc6 {[%emt 0:07:18]} 19. Nxd5 {[%emt 0:05:15]} Nxd5 {[%emt 0:00:04]} 20. Rfc1 {[%emt 0:00:42]} Rac8 {[%emt 0:00:12]} 21. Rc5 {[%emt 0:13:19]} Nf6 {[%emt 0:15:20]} 22. Rac1 {[%emt 0:03:00]} h6 {[%emt 0:07:02]} 23. Qb5 {[%emt 0:02:46]} 1/2-1/2

[Event "Tatra Limba Master 2022"]
[Site "Poronin"]
[Date "2022.01.08"]
[Round "4.5"]
[White "Mirski, Michal"]
[Black "Kozlowski, Franciszek"]
[Result "1-0"]
[ECO "B72"]
[WhiteElo "2039"]
[BlackElo "1523"]
[Annotator "ChessBase"]
[PlyCount "131"]
[EventDate "2022.01.07"]
[EventType "swiss"]
[EventCountry "POL"]
[SourceTitle "playchess.com"]
[Source "ChessBase"]
[SourceQuality "1"]
[TimeControl "5400+30"]

1. e4 {[%emt 0:00:04]} c5 {[%emt 0:00:11]} 2. Nf3 {[%emt 0:00:11]} d6 {[%emt 0:00:09]} 3. d4 {[%emt 0:00:07]} cxd4 {[%emt 0:01:07]} 4. Nxd4 {[%emt 0:00:04]} Nf6 {[%emt 0:01:45]} 5. Nc3 {[%emt 0:00:06]} g6 {[%emt 0:02:09]} 6. Be3 {[%emt 0:03:33]} a6 {[%emt 0:01:28]} 7. f3 {[%emt 0:01:25]} Bg7 {[%emt 0:04:00]} 8. Qd2 {[%emt 0:02:47]} O-O {[%emt 0:01:16]} 9. O-O-O {[%emt 0:03:52]} Qc7 {[%emt 0:01:24]} 10. g4 {[%emt 0:04:39]} Nc6 {[%emt 0:01:29]} 11. h4 {[%emt 0:01:31]} Nd7 {[%emt 0:08:17]} 12. Nd5 {[%emt 0:04:56]} Qd8 {[%emt 0:00:32]} 13. h5 {[%emt 0:00:52]} Bxd4 {[%emt 0:09:38]} 14. Bxd4 {[%emt 0:01:11]} Nxd4 {[%emt 0:02:07]} 15. Qxd4 {[%emt 0:00:10]} e6 {[%emt 0:03:13]} 16. Nc3 {[%emt 0:05:52]} Ne5 {[%emt 0:07:01]} 17. Be2 {[%emt 0:04:04]} Qg5+ {[%emt 0:02:07]} 18. Kb1 {[%emt 0:03:06]} Bd7 {[%emt 0:02:56]} 19. Qxd6 {[%emt 0:04:49]} Bc6 {[%emt 0:01:31]} 20. hxg6 {[%emt 0:02:55]} hxg6 {[%emt 0:01:22]} 21. Qd4 {[%emt 0:04:17]} Rad8 {[%emt 0:02:44]} 22. Qf2 {[%emt 0:01:31]} Rxd1+ {[%emt 0:01:08]} 23. Bxd1 {[%emt 0:11:02]} Qf6 {[%emt 0:02:24]} 24. Qh2 {[%emt 0:10:40]} Qg7 {[%emt 0:02:53]} 25. g5 {[%emt 0:00:53]} Nc4 {[%emt 0:01:27]} 26. Be2 {[%emt 0:01:25]} Ne5 {[%emt 0:03:01]} 27. Nd1 {[%emt 0:08:52]} Rd8 {[%emt 0:03:12]} 28. Kc1 {[%emt 0:03:45]} Bb5 {[%emt 0:01:26]} 29. f4 {[%emt 0:02:16]} Bxe2 {[%emt 0:02:57]} 30. Qxe2 {[%emt 0:00:06]} Nc6 {[%emt 0:01:16]} 31. e5 {[%emt 0:02:23]} Nd4 {[%emt 0:01:56]} 32. Qh2 {[%emt 0:02:14]} Kf8 {[%emt 0:07:21]} 33. Ne3 {[%emt 0:00:51]} Ke7 {[%emt 0:01:15]} 34. c3 {[%emt 0:02:35]} Nf5 {[%emt 0:01:17]} 35. Ng4 {[%emt 0:01:23]} Kd7 {[%emt 0:02:05]} 36. Rd1+ {[%emt 0:03:48]} Kc7 {[%emt 0:00:12]} 37. Rxd8 {[%emt 0:00:06]} Kxd8 {[%emt 0:00:13]} 38. Nf6 {[%emt 0:00:14]} Qf8 {[%emt 0:01:43]} 39. Qd2+ {[%emt 0:00:09]} Kc8 {[%emt 0:00:48]} 40. Qd7+ {[%emt 0:00:13]} Kb8 {[%emt 0:00:08]} 41. Qxe6 {[%emt 0:04:19]} fxe6 {[%emt 0:02:08]} 42. Nd7+ {[%emt 0:00:07]} Kc7 {[%emt 0:00:19]} 43. Nxf8 {[%emt 0:00:03]} Kc6 {[%emt 0:00:21]} 44. Nxg6 {[%emt 0:01:06]} Kd5 {[%emt 0:00:25]} 45. Nf8 {[%emt 0:00:21]} Ng7 {[%emt 0:00:31]} 46. Nd7 {[%emt 0:01:43]} Ke4 {[%emt 0:00:25]} 47. Nc5+ {[%emt 0:00:14]} Kxf4 {[%emt 0:00:10]} 48. Nxb7 {[%emt 0:00:07]} Kxe5 {[%emt 0:01:00]} 49. Nc5 {[%emt 0:00:09]} Kf4 {[%emt 0:00:52]} 50. Nxa6 {[%emt 0:00:16]} Kxg5 {[%emt 0:01:11]} 51. a4 {[%emt 0:00:21]} Ne8 {[%emt 0:00:29]} 52. a5 {[%emt 0:00:15]} Kf5 {[%emt 0:00:24]} 53. Nc5 {[%emt 0:00:04]} Nc7 {[%emt 0:00:44]} 54. b4 {[%emt 0:01:26]} Ke5 {[%emt 0:00:13]} 55. Kd2 {[%emt 0:00:12]} Kd5 {[%emt 0:00:25]} 56. Kd3 {[%emt 0:00:07]} Kc6 {[%emt 0:00:40]} 57. c4 {[%emt 0:00:14]} Kd6 {[%emt 0:00:36]} 58. Ke4 {[%emt 0:00:12]} Ne8 {[%emt 0:00:26]} 59. Nd3 {[%emt 0:00:21]} Nf6+ {[%emt 0:01:21]} 60. Kd4 {[%emt 0:00:06]} Ne8 {[%emt 0:00:31]} 61. b5 {[%emt 0:00:17]} Ng7 {[%emt 0:00:58]} 62. c5+ {[%emt 0:00:07]} Kc7 {[%emt 0:00:18]} 63. Ke5 {[%emt 0:00:06]} Nf5 {[%emt 0:00:17]} 64. Nb4 {[%emt 0:00:36]} Ne3 {[%emt 0:00:18]} 65. b6+ {[%emt 0:00:09]} Kb8 {[%emt 0:00:31]} 66. Kxe6 {[%emt 0:00:18]} 1-0